{"text_format":"1","workbook":"xlsx","n_sheets":1,"sheets":["Interactive charts"],"not_rendered":{"charts":5,"images":5,"macros":1,"external_links":1,"defined_names":2,"comments":0,"pivot_tables":0},"unopened":[],"bounds":{"document_bytes":16777216,"sheet_cells":100000,"rows_first":2000,"rows_last":500,"rows_between":2000,"halvings":0,"cell_chars":16384,"cell_head_chars":4096},"cells_cut":0,"cells_raw":0,"read":"whole","date_system":"1900"}

{"sheet":"Interactive charts","index":0,"n_rows":69,"n_cols":91,"rows_kept":69,"cut":false,"hidden":false,"merged":[[52,32,52,33],[52,34,52,35],[52,36,52,37],[52,38,52,39],[52,40,52,41],[52,42,52,43],[51,32,51,33],[51,34,51,35],[51,36,51,37],[51,38,51,39],[51,40,51,41],[51,42,51,43],[50,32,50,33],[50,34,50,35],[50,36,50,37],[50,38,50,39],[50,40,50,41],[50,42,50,43],[49,32,49,33],[49,34,49,35],[49,36,49,37],[49,38,49,39],[49,40,49,41],[49,42,49,43],[48,32,48,33],[48,34,48,35],[48,36,48,37],[48,38,48,39],[48,40,48,41],[48,42,48,43],[46,40,46,41],[46,42,46,43],[47,32,47,33],[47,34,47,35],[47,36,47,37],[47,38,47,39],[47,40,47,41],[47,42,47,43],[44,42,44,43],[45,32,45,33],[45,34,45,35],[45,36,45,37],[45,38,45,39],[45,40,45,41],[45,42,45,43],[44,17,68,26],[44,32,44,33],[44,34,44,35],[44,36,44,37],[44,38,44,39],[44,40,44,41],[46,32,46,33],[46,34,46,35],[46,36,46,37],[46,38,46,39],[42,42,42,43],[43,32,43,33],[43,34,43,35],[43,36,43,37],[43,38,43,39],[43,40,43,41],[43,42,43,43],[42,14,43,14],[42,32,42,33],[42,34,42,35],[42,36,42,37],[42,38,42,39],[42,40,42,41],[40,36,40,37],[40,38,40,39],[40,40,40,41],[40,42,40,43],[41,32,41,33],[41,34,41,35],[41,36,41,37],[41,38,41,39],[41,40,41,41],[41,42,41,43],[34,15,36,17],[34,19,36,21],[34,23,36,25],[34,27,36,29],[40,32,40,33],[40,34,40,35],[31,46,31,47],[31,48,31,49],[31,50,31,51],[31,52,31,53],[31,54,31,55],[31,56,31,57],[30,46,30,47],[30,48,30,49],[30,50,30,51],[30,52,30,53],[30,54,30,55],[30,56,30,57],[29,46,29,47],[29,48,29,49],[29,50,29,51],[29,52,29,53],[29,54,29,55],[29,56,29,57],[27,46,28,47],[27,48,27,51],[27,52,27,55],[27,56,28,57],[28,48,28,49],[28,50,28,51],[28,52,28,53],[28,54,28,55],[1,15,1,16],[2,15,2,16],[9,14,11,29],[12,14,14,29],[24,15,25,17],[24,19,25,21],[24,23,25,25],[24,26,25,29]]}
[null,null,null,null,null,null,null,null,null,null,null,null,null,null,null,null,null,null,null,null,null,null,null,null,null,null,null,null,null,null,null,null,null,null,null,null,null,null,null,null,null,null,null,null,null,null,null,null,null,null,null,null,null,null,null,null,null,null,null,null,null,103]
[null,null,null,null,{"$f":"PROPER(CONCATENATE(UPPER(E3),\" REPORT \"))","v":" Report "},null,null,null,null,null,null,null,null,null,null,null,null,"Manhattan","Year",2016]
[null,{"$f":"CONCATENATE(B4,\" Report \")","v":"UWS Report "},null,null,{"$f":"PROPER(CONCATENATE(UPPER(U3)))","v":""},null,null,null,null,null,null,null,null,null,null,"Neighborhood",null,"UWS","Quarter",1]
[null,{"$f":"CONCATENATE(R3)","v":"UWS"},null,null,{"$f":"CONCATENATE(UPPER(VLOOKUP(W3,D:E,2,FALSE)),\" \",W2)","v":{"$error":"#N/A"}}]
[null,"JANUARY 2016"]
[null,{"$f":"CONCATENATE(\"in \",CONCATENATE(R3,\", \",PROPER(R2)))","v":"in UWS, Manhattan"}]
[]
[null,null,null,null,null,null,null,null,null,null,null,null,null,null,null,null,null,null,null,null,null,null,null,null,null,null,null,null,null,null,null,null,null,null,null,null,null,null,null,null,null,null,null,null,null,null,null,null,null,null,null,null,null,null,null,null,null,null,null,null,null,{"$f":"IFERROR(IF(BI9<>\"\",\"Address\",\"\"),\"\")","v":"Address"},{"$f":"IFERROR(IF(BI9<>\"\",\"BBL\",\"\"),\"\")","v":"BBL"},{"$f":"IFERROR(IF(BI9<>\"\",\"Sale date\",\"\"),\"\")","v":"Sale date"},{"$f":"IFERROR(IF(BI9<>\"\",\"Sale price\",\"\"),\"\")","v":"Sale price"},{"$f":"IFERROR(IF(BI9<>\"\",\"Property type\",\"\"),\"\")","v":"Property type"},{"$f":"IFERROR(IF(BI9<>\"\",\"Sqft\",\"\"),\"\")","v":"Sqft"},null,null,{"$f":"IFERROR(IF(BQ9<>\"\",\"Address\",\"\"),\"\")","v":"Address"},{"$f":"IFERROR(IF(BQ9<>\"\",\"BBL\",\"\"),\"\")","v":"BBL"},{"$f":"IFERROR(IF(BQ9<>\"\",\"Sale date\",\"\"),\"\")","v":"Sale date"},{"$f":"IFERROR(IF(BQ9<>\"\",\"Sale price\",\"\"),\"\")","v":"Sale price"},{"$f":"IFERROR(IF(BQ9<>\"\",\"Property type\",\"\"),\"\")","v":"Property type"},{"$f":"IFERROR(IF(BQ9<>\"\",\"Sqft\",\"\"),\"\")","v":"Sqft"},null,null,{"$f":"IFERROR(IF(BY9<>\"\",\"Address\",\"\"),\"\")","v":""},{"$f":"IFERROR(IF(BY9<>\"\",\"BBL\",\"\"),\"\")","v":""},{"$f":"IFERROR(IF(BY9<>\"\",\"Sale date\",\"\"),\"\")","v":""},{"$f":"IFERROR(IF(BY9<>\"\",\"Sale price\",\"\"),\"\")","v":""},{"$f":"IFERROR(IF(BY9<>\"\",\"Property type\",\"\"),\"\")","v":""},{"$f":"IFERROR(IF(BY9<>\"\",\"Sqft\",\"\"),\"\")","v":""},null,null,{"$f":"IFERROR(IF(CG9<>\"\",\"Address\",\"\"),\"\")","v":""},{"$f":"IFERROR(IF(CG9<>\"\",\"BBL\",\"\"),\"\")","v":""},{"$f":"IFERROR(IF(CG9<>\"\",\"Sale date\",\"\"),\"\")","v":""},{"$f":"IFERROR(IF(CG9<>\"\",\"Sale price\",\"\"),\"\")","v":""},{"$f":"IFERROR(IF(CG9<>\"\",\"Property type\",\"\"),\"\")","v":""},{"$f":"IFERROR(IF(CG9<>\"\",\"Sqft\",\"\"),\"\")","v":""}]
[null,null,null,null,null,null,null,null,null,null,null,null,null,null,null,null,null,null,null,null,null,null,null,null,null,null,null,null,null,null,null,null,null,null,null,null,null,null,null,null,null,null,null,null,null,null,null,null,null,null,null,null,null,null,null,null,null,null,null,null,1,"261-265 Central Park W #10A","1-01200-0031","2016-01-28",11300000,"Coop","n/a",null,{"$f":"IFERROR(BI69+1,\"\")","v":62},"15-21 W 84 St #4F","1-01198-0019","2016-01-13",937000,"Coop","n/a",null,{"$f":"IFERROR(BQ69+1,\"\")","v":""},"","","","","","",null,{"$f":"IFERROR(BY69+1,\"\")","v":""},"","","","","",""]
[null,null,null,null,null,null,null,null,null,null,null,null,null,null,"Residential Market Report,  January 2016",null,null,null,null,null,null,null,null,null,null,null,null,null,null,null,null,null,null,null,null,null,null,null,null,null,null,null,null,null,null,null,null,null,null,null,null,null,null,null,null,null,null,null,null,null,{"$f":"IF(BI9<$BJ$1,BI9+1,\"\")","v":2},"261-265 Central Park W #11F","1-01200-0031","2016-01-15",4650000,"Coop","n/a",null,{"$f":"IFERROR(IF(BQ9<'Interactive charts'!$BJ$1,BQ9+1,\"\"),\"\")","v":63},"255 W 95 St #1C","1-01243-0008","2016-01-27",925000,"Coop","n/a",null,{"$f":"IFERROR(IF(BY9<'Interactive charts'!$BJ$1,BY9+1,\"\"),\"\")","v":""},"","","","","","",null,{"$f":"IFERROR(IF(CG9<'Interactive charts'!$BJ$1,CG9+1,\"\"),\"\")","v":""},"","","","","",""]
[null,null,null,null,null,null,null,null,null,null,null,null,null,null,null,null,null,null,null,null,null,null,null,null,null,null,null,null,null,null,null,null,null,null,null,null,null,null,null,null,null,null,null,null,null,null,null,null,null,null,null,null,null,null,null,null,null,null,null,null,3,"133 W 81 St #4F","1-01212-0021","2016-01-05",4300000,"Coop","n/a",null,{"$f":"IFERROR(IF(BQ10<'Interactive charts'!$BJ$1,BQ10+1,\"\"),\"\")","v":64},"2373 Broadway #1431","1-01234-1003","2016-01-26",919000,"Coop","n/a",null,{"$f":"IFERROR(IF(BY10<'Interactive charts'!$BJ$1,BY10+1,\"\"),\"\")","v":""},"","","","","","",null,{"$f":"IFERROR(IF(CG10<'Interactive charts'!$BJ$1,CG10+1,\"\"),\"\")","v":""},"","","","","",""]
[null,null,null,null,null,null,null,null,null,null,null,null,null,null,null,null,null,null,null,null,null,null,null,null,null,null,null,null,null,null,null,null,null,null,null,null,null,null,null,null,null,null,null,null,null,null,null,null,null,null,null,null,null,null,null,null,null,null,null,null,4,"450 W End Ave #13C","1-01229-0061","2016-01-19",4150000,"Coop","n/a",null,{"$f":"IFERROR(IF(BQ11<'Interactive charts'!$BJ$1,BQ11+1,\"\"),\"\")","v":65},"227-228 Central Park W #1D","1-01196-0035","2016-01-08",895000,"Coop","n/a",null,{"$f":"IFERROR(IF(BY11<'Interactive charts'!$BJ$1,BY11+1,\"\"),\"\")","v":""},"","","","","","",null,{"$f":"IFERROR(IF(CG11<'Interactive charts'!$BJ$1,CG11+1,\"\"),\"\")","v":""},"","","","","",""]
[null,null,null,null,null,null,null,null,null,null,null,null,null,null,{"$f":"CONCATENATE(R3,\", \",R2)","v":"UWS, Manhattan"},null,null,null,null,null,null,null,null,null,null,null,null,null,null,null,null,null,null,null,null,null,null,null,null,null,null,null,null,null,null,null,null,null,null,null,null,null,null,null,null,null,null,null,null,null,5,"110-118 Riverside Dr #10B","1-01245-0047","2016-01-19",3995000,"Coop","n/a",null,{"$f":"IFERROR(IF(BQ12<'Interactive charts'!$BJ$1,BQ12+1,\"\"),\"\")","v":66},"595 West End Avenue #2D","1-01250-1107","2016-01-12",865512.5,"Condo",704,null,{"$f":"IFERROR(IF(BY12<'Interactive charts'!$BJ$1,BY12+1,\"\"),\"\")","v":""},"","","","","","",null,{"$f":"IFERROR(IF(CG12<'Interactive charts'!$BJ$1,CG12+1,\"\"),\"\")","v":""},"","","","","",""]
[null,null,null,null,null,null,null,null,null,null,null,null,null,null,null,null,null,null,null,null,null,null,null,null,null,null,null,null,null,null,null,null,null,null,null,null,null,null,null,null,null,null,null,null,null,null,null,null,null,null,null,null,null,null,null,null,null,null,null,null,6,"322 Central Park W #11A","1-01206-0029","2016-01-19",3800000,"Coop","n/a",null,{"$f":"IFERROR(IF(BQ13<'Interactive charts'!$BJ$1,BQ13+1,\"\"),\"\")","v":67},"600 W End Ave #6C","1-01237-0001","2016-01-07",865000,"Coop","n/a",null,{"$f":"IFERROR(IF(BY13<'Interactive charts'!$BJ$1,BY13+1,\"\"),\"\")","v":""},"","","","","","",null,{"$f":"IFERROR(IF(CG13<'Interactive charts'!$BJ$1,CG13+1,\"\"),\"\")","v":""},"","","","","",""]
[null,null,null,null,null,null,null,null,null,null,null,null,null,null,null,null,null,null,null,null,null,null,null,null,null,null,null,null,null,null,null,null,null,null,null,null,null,null,null,null,null,null,null,null,null,null,null,null,null,null,null,null,null,null,null,null,null,null,null,null,7,"161 West 75 Street #R1","1-01147-1003","2016-01-28",3700000,"Coop","n/a",null,{"$f":"IFERROR(IF(BQ14<'Interactive charts'!$BJ$1,BQ14+1,\"\"),\"\")","v":68},"160-168 W 85 St #6D","1-01215-0056","2016-01-04",835000,"Coop","n/a",null,{"$f":"IFERROR(IF(BY14<'Interactive charts'!$BJ$1,BY14+1,\"\"),\"\")","v":""},"","","","","","",null,{"$f":"IFERROR(IF(CG14<'Interactive charts'!$BJ$1,CG14+1,\"\"),\"\")","v":""},"","","","","",""]
[null,null,null,null,null,null,null,null,null,null,null,null,null,null,null,null,null,null,null,null,null,null,null,null,null,null,null,null,null,null,null,null,null,null,null,null,null,null,null,null,null,null,null,null,null,null,null,null,null,null,null,null,null,null,null,null,null,null,null,null,8,"101 West 79 Street #10G","1-01210-1071","2016-01-29",3500000,"Condo",1700,null,{"$f":"IFERROR(IF(BQ15<'Interactive charts'!$BJ$1,BQ15+1,\"\"),\"\")","v":69},"105 W 73 St #7A","1-01145-0029","2016-01-15",810000,"Coop","n/a",null,{"$f":"IFERROR(IF(BY15<'Interactive charts'!$BJ$1,BY15+1,\"\"),\"\")","v":""},"","","","","","",null,{"$f":"IFERROR(IF(CG15<'Interactive charts'!$BJ$1,CG15+1,\"\"),\"\")","v":""},"","","","","",""]
[null,null,null,null,null,null,null,null,null,null,null,null,null,null,null,null,null,null,null,null,null,null,null,null,null,null,null,null,null,null,null,null,null,null,null,null,null,null,null,null,null,null,null,null,null,null,null,null,null,null,null,null,null,null,null,null,null,null,null,null,9,"101 West 79 Street #10F","1-01210-1071","2016-01-29",3500000,"Condo",1700,null,{"$f":"IFERROR(IF(BQ16<'Interactive charts'!$BJ$1,BQ16+1,\"\"),\"\")","v":70},"2420-2424 Broadway #7K","1-01237-0017","2016-01-11",795000,"Coop","n/a",null,{"$f":"IFERROR(IF(BY16<'Interactive charts'!$BJ$1,BY16+1,\"\"),\"\")","v":""},"","","","","","",null,{"$f":"IFERROR(IF(CG16<'Interactive charts'!$BJ$1,CG16+1,\"\"),\"\")","v":""},"","","","","",""]
[null,null,null,null,null,null,null,null,null,null,null,null,null,null,null,null,null,null,null,null,null,null,null,null,null,null,null,null,null,null,null,null,null,null,null,null,null,null,null,null,null,null,null,null,null,null,null,null,null,null,null,null,null,null,null,null,null,null,null,null,10,"110-118 Riverside Dr #14F","1-01245-0047","2016-01-08",3450000,"Coop","n/a",null,{"$f":"IFERROR(IF(BQ17<'Interactive charts'!$BJ$1,BQ17+1,\"\"),\"\")","v":71},"169 West 95 Street #18J","1-01226-1240","2016-01-19",789143.75,"Condo","n/a",null,{"$f":"IFERROR(IF(BY17<'Interactive charts'!$BJ$1,BY17+1,\"\"),\"\")","v":""},"","","","","","",null,{"$f":"IFERROR(IF(CG17<'Interactive charts'!$BJ$1,CG17+1,\"\"),\"\")","v":""},"","","","","",""]
[null,null,null,null,null,null,null,null,null,null,null,null,null,null,null,null,null,null,null,null,null,null,null,null,null,null,null,null,null,null,null,null,null,null,null,null,null,null,null,null,null,null,null,null,null,null,null,null,null,null,null,null,null,null,null,null,null,null,null,null,11,"32 W 82 St #7B","1-01195-0048","2016-01-14",3100000,"Coop","n/a",null,{"$f":"IFERROR(IF(BQ18<'Interactive charts'!$BJ$1,BQ18+1,\"\"),\"\")","v":72},"304 W 75 St #12H","1-01184-0087","2016-01-11",770000,"Coop","n/a",null,{"$f":"IFERROR(IF(BY18<'Interactive charts'!$BJ$1,BY18+1,\"\"),\"\")","v":""},"","","","","","",null,{"$f":"IFERROR(IF(CG18<'Interactive charts'!$BJ$1,CG18+1,\"\"),\"\")","v":""},"","","","","",""]
[null,null,null,null,null,null,null,null,null,null,null,null,null,null,null,null,null,null,null,null,null,null,null,null,null,null,null,null,null,null,null,null,null,null,null,null,null,null,null,null,null,null,null,null,null,null,null,null,null,null,null,null,null,null,null,null,null,null,null,null,12,"205 West 76 Street #7H","1-01168-1090","2016-01-06",3089750,"Condo",1340,null,{"$f":"IFERROR(IF(BQ19<'Interactive charts'!$BJ$1,BQ19+1,\"\"),\"\")","v":73},"317 West 95 Street #D7","1-01253-1030","2016-01-14",765000,"Condo",634,null,{"$f":"IFERROR(IF(BY19<'Interactive charts'!$BJ$1,BY19+1,\"\"),\"\")","v":""},"","","","","","",null,{"$f":"IFERROR(IF(CG19<'Interactive charts'!$BJ$1,CG19+1,\"\"),\"\")","v":""},"","","","","",""]
[null,null,null,null,null,null,null,null,null,null,null,null,null,null,null,null,null,null,null,null,null,null,null,null,null,null,null,null,null,null,null,null,null,null,null,null,null,null,null,null,null,null,null,null,null,null,null,null,null,null,null,null,null,null,null,null,null,null,null,null,13,"2460 Broadway #92","1-01239-0023","2016-01-15",3050000,"Coop","n/a",null,{"$f":"IFERROR(IF(BQ20<'Interactive charts'!$BJ$1,BQ20+1,\"\"),\"\")","v":74},"301 West 108 Street #8H","1-01893-1002","2016-01-20",760000,"Coop","n/a",null,{"$f":"IFERROR(IF(BY20<'Interactive charts'!$BJ$1,BY20+1,\"\"),\"\")","v":""},"","","","","","",null,{"$f":"IFERROR(IF(CG20<'Interactive charts'!$BJ$1,CG20+1,\"\"),\"\")","v":""},"","","","","",""]
[null,null,null,null,null,null,null,null,null,null,null,null,null,null,null,null,null,null,null,null,null,null,null,null,null,null,null,null,null,null,null,null,null,null,null,null,null,null,null,null,null,null,null,null,null,null,null,null,null,null,null,null,null,null,null,null,null,null,null,null,14,"101 West 79 Street #24A","1-01210-1124","2016-01-11",3000000,"Condo",1330,null,{"$f":"IFERROR(IF(BQ21<'Interactive charts'!$BJ$1,BQ21+1,\"\"),\"\")","v":75},"169 West 95 Street #16J","1-01226-1222","2016-01-06",748413.75,"Condo","n/a",null,{"$f":"IFERROR(IF(BY21<'Interactive charts'!$BJ$1,BY21+1,\"\"),\"\")","v":""},"","","","","","",null,{"$f":"IFERROR(IF(CG21<'Interactive charts'!$BJ$1,CG21+1,\"\"),\"\")","v":""},"","","","","",""]
[null,null,null,null,null,null,null,null,null,null,null,null,null,null,null,null,null,null,null,null,null,null,null,null,null,null,null,null,null,null,null,null,null,null,null,null,null,null,null,null,null,null,null,null,null,null,null,null,null,null,null,null,null,null,null,null,null,null,null,null,15,"40 West 76 Street #UNT4B","1-01128-1105","2016-01-06",3000000,"Condo",400,null,{"$f":"IFERROR(IF(BQ22<'Interactive charts'!$BJ$1,BQ22+1,\"\"),\"\")","v":76},"175 W 73 St #14G","1-01145-0001","2016-01-13",718500,"Coop","n/a",null,{"$f":"IFERROR(IF(BY22<'Interactive charts'!$BJ$1,BY22+1,\"\"),\"\")","v":""},"","","","","","",null,{"$f":"IFERROR(IF(CG22<'Interactive charts'!$BJ$1,CG22+1,\"\"),\"\")","v":""},"","","","","",""]
[null,null,null,null,null,null,null,null,null,null,null,null,null,null,null,null,null,null,null,null,null,null,null,null,null,null,null,null,null,null,null,null,null,null,null,null,null,null,null,null,null,null,null,null,null,null,null,null,null,null,null,null,null,null,null,null,null,null,null,null,16,"112-118 W 79 St #2B","1-01150-0037","2016-01-07",2846009,"Coop","n/a",null,{"$f":"IFERROR(IF(BQ23<'Interactive charts'!$BJ$1,BQ23+1,\"\"),\"\")","v":77},"176 West 86 Street #7C","1-01216-1035","2016-01-22",702500,"Condo",634,null,{"$f":"IFERROR(IF(BY23<'Interactive charts'!$BJ$1,BY23+1,\"\"),\"\")","v":""},"","","","","","",null,{"$f":"IFERROR(IF(CG23<'Interactive charts'!$BJ$1,CG23+1,\"\"),\"\")","v":""},"","","","","",""]
[null,null,null,null,null,null,null,null,null,null,null,null,null,null,null,"MEDIAN SALE PRICE",null,null,null,"NO. OF TRANSACTIONS",null,null,null,"MEDIAN PRICE/SQ. FT.",null,null,"        BOROUGH MEDIAN SALE PRICE",null,null,null,null,null,null,null,null,null,null,null,null,null,null,null,null,null,null,null,null,null,null,null,null,null,null,null,null,null,null,null,null,null,17,"325 W End Ave #2C","1-01185-0019","2016-01-21",2800000,"Coop","n/a",null,{"$f":"IFERROR(IF(BQ24<'Interactive charts'!$BJ$1,BQ24+1,\"\"),\"\")","v":78},"5 Riverside Dr #12E","1-01184-0028","2016-01-20",695000,"Coop","n/a",null,{"$f":"IFERROR(IF(BY24<'Interactive charts'!$BJ$1,BY24+1,\"\"),\"\")","v":""},"","","","","","",null,{"$f":"IFERROR(IF(CG24<'Interactive charts'!$BJ$1,CG24+1,\"\"),\"\")","v":""},"","","","","",""]
[null,null,null,null,null,null,null,null,null,null,null,null,null,null,null,null,null,null,null,null,null,null,null,null,null,null,null,null,null,null,null,null,null,null,null,null,null,null,null,null,null,null,null,null,null,null,null,null,null,null,null,null,null,null,null,null,null,null,null,null,18,"110-118 Riverside Dr #16E","1-01245-0047","2016-01-26",2772000,"Coop","n/a",null,{"$f":"IFERROR(IF(BQ25<'Interactive charts'!$BJ$1,BQ25+1,\"\"),\"\")","v":79},"16 W 74 St #PH","1-01126-0042","2016-01-13",695000,"Coop","n/a",null,{"$f":"IFERROR(IF(BY25<'Interactive charts'!$BJ$1,BY25+1,\"\"),\"\")","v":""},"","","","","","",null,{"$f":"IFERROR(IF(CG25<'Interactive charts'!$BJ$1,CG25+1,\"\"),\"\")","v":""},"","","","","",""]
[null,null,null,null,null,null,null,null,null,null,null,null,null,null,null,null,null,null,null,null,null,null,null,null,null,null,null,null,null,null,null,null,null,null,null,null,null,null,null,null,null,null,null,null,null,null,null,null,null,null,null,null,null,null,null,null,null,null,null,null,19,"825 West End Avenue #12A","1-01889-1075","2016-01-15",2700000,"Condo",2102,null,{"$f":"IFERROR(IF(BQ26<'Interactive charts'!$BJ$1,BQ26+1,\"\"),\"\")","v":80},"118 W 81 St #3R","1-01211-0042","2016-01-11",685000,"Coop","n/a",null,{"$f":"IFERROR(IF(BY26<'Interactive charts'!$BJ$1,BY26+1,\"\"),\"\")","v":""},"","","","","","",null,{"$f":"IFERROR(IF(CG26<'Interactive charts'!$BJ$1,CG26+1,\"\"),\"\")","v":""},"","","","","",""]
[null,null,null,null,null,null,null,null,null,null,null,null,null,null,null,null,null,null,null,null,103,null,null,null,1273.0749354005202,null,null,null,null,null,null,null,null,null,null,null,null,null,null,null,null,null,null,null,null,null,"Property type ",null," Median Price ",null,null,null," Median price per sq. ft. ",null,null,null,"No. of sales",null,null,null,20,"18 W 74 St #5","1-01126-0043","2016-01-21",2550000,"Coop","n/a",null,{"$f":"IFERROR(IF(BQ27<'Interactive charts'!$BJ$1,BQ27+1,\"\"),\"\")","v":81},"126 W 73 St #7B","1-01144-0043","2016-01-27",685000,"Coop","n/a",null,{"$f":"IFERROR(IF(BY27<'Interactive charts'!$BJ$1,BY27+1,\"\"),\"\")","v":""},"","","","","","",null,{"$f":"IFERROR(IF(CG27<'Interactive charts'!$BJ$1,CG27+1,\"\"),\"\")","v":""},"","","","","",""]
[null,null,null,null,null,null,null,null,null,null,null,null,null,null,null,null,"$1.1M",null,null,null,null,null,null,null,null,null,null,null,null,"$1.2M",null,null,null,null,null,null,null,null,null,null,null,null,null,null,null,null,null,null,"Price",null,"Y-o-Y change",null,"Price ",null,"Y-o-Y change",null,null,null,null,null,21,"165 West 91 Street #5A","1-01222-1030","2016-01-27",2392887.5,"Condo",1533,null,{"$f":"IFERROR(IF(BQ28<'Interactive charts'!$BJ$1,BQ28+1,\"\"),\"\")","v":82},"110 West 90 Street #3L","1-01220-1350","2016-01-21",684000,"Condo",429,null,{"$f":"IFERROR(IF(BY28<'Interactive charts'!$BJ$1,BY28+1,\"\"),\"\")","v":""},"","","","","","",null,{"$f":"IFERROR(IF(CG28<'Interactive charts'!$BJ$1,CG28+1,\"\"),\"\")","v":""},"","","","","",""]
[null,null,null,null,null,null,null,null,null,null,null,null,null,null,null,null,null,null,null,null,null,null,null,null,null,null,null,null,null,null,null,null,null,null,null,null,null,null,null,null,null,null,null,null,null,{"$f":"IF(BE30<>\"n/a\",AU30,\"\")","v":"Condos"},"Condos",null,1457683.75,null,0.29168867669663134,null,1462.76595744681,null,0.18002998714837037,null,28,null,{"$f":"IF(BE30=\"n/a\",0,BE30)/(IF($BE$30=\"n/a\",0,$BE$30)+IF($BE$31=\"n/a\",0,$BE$31)+IF($BE$32=\"n/a\",0,$BE$32))","v":0.27184466019417475},null,22,"219 West 81 Street #7A","1-01229-1159","2016-01-26",2320987.5,"Condo",2117,null,{"$f":"IFERROR(IF(BQ29<'Interactive charts'!$BJ$1,BQ29+1,\"\"),\"\")","v":83},"2373 Broadway #325","1-01234-1003","2016-01-29",675000,"Coop","n/a",null,{"$f":"IFERROR(IF(BY29<'Interactive charts'!$BJ$1,BY29+1,\"\"),\"\")","v":""},"","","","","","",null,{"$f":"IFERROR(IF(CG29<'Interactive charts'!$BJ$1,CG29+1,\"\"),\"\")","v":""},"","","","","",""]
[null,null,null,null,null,null,null,null,null,null,null,null,null,null,null,null,null,null,null,null,null,null,null,null,null,null,null,null,null,null,null,null,null,null,null,null,null,null,null,null,null,null,null,null,null,{"$f":"IF(BE31<>\"n/a\",AU31,\"\")","v":"Co-ops"},"Co-ops",null,999000,null,0.12247191011235947,null,1213.57142857143,null,0.21023219969283646,null,75,null,{"$f":"IF(BE31=\"n/a\",0,BE31)/(IF($BE$30=\"n/a\",0,$BE$30)+IF($BE$31=\"n/a\",0,$BE$31)+IF($BE$32=\"n/a\",0,$BE$32))","v":0.72815533980582525},null,23,"565-569 W End Ave #4A","1-01249-0029","2016-01-29",2250000,"Coop","n/a",null,{"$f":"IFERROR(IF(BQ30<'Interactive charts'!$BJ$1,BQ30+1,\"\"),\"\")","v":84},"304-306 W 89 St #9D","1-01250-0040","2016-01-26",659000,"Coop","n/a",null,{"$f":"IFERROR(IF(BY30<'Interactive charts'!$BJ$1,BY30+1,\"\"),\"\")","v":""},"","","","","","",null,{"$f":"IFERROR(IF(CG30<'Interactive charts'!$BJ$1,CG30+1,\"\"),\"\")","v":""},"","","","","",""]
[null,null,null,null,null,null,null,null,null,null,null,null,null,null,null,null,null,null,null,null,null,null,null,null,null,null,null,null,null,null,null,null,null,null,null,null,null,null,null,null,null,null,null,null,null,{"$f":"IF(BE32<>\"n/a\",AU32,\"\")","v":""},"Houses",null,"n/a",null,"n/a",null,"n/a",null,"n/a",null,"n/a",null,{"$f":"IF(BE32=\"n/a\",0,BE32)/(IF($BE$30=\"n/a\",0,$BE$30)+IF($BE$31=\"n/a\",0,$BE$31)+IF($BE$32=\"n/a\",0,$BE$32))","v":0},null,24,"325 W 75 St #4","1-01185-0007","2016-01-20",2150000,"Coop","n/a",null,{"$f":"IFERROR(IF(BQ31<'Interactive charts'!$BJ$1,BQ31+1,\"\"),\"\")","v":85},"243 West 98 Street #1F","1-01870-1010","2016-01-19",645000,"Coop","n/a",null,{"$f":"IFERROR(IF(BY31<'Interactive charts'!$BJ$1,BY31+1,\"\"),\"\")","v":""},"","","","","","",null,{"$f":"IFERROR(IF(CG31<'Interactive charts'!$BJ$1,CG31+1,\"\"),\"\")","v":""},"","","","","",""]
[null,null,null,null,null,null,null,null,null,null,null,null,null,null,null,null,null,null,null,null,null,null,null,null,null,null,null,null,null,null,null,null,null,null,null,null,null,null,null,null,null,null,null,null,null,null,null,null,null,null,null,null,null,null,null,null,null,null,null,null,25,"317 West 89 Street #1WF","1-01250-1203","2016-01-28",2089000,"Condo",1527,null,{"$f":"IFERROR(IF(BQ32<'Interactive charts'!$BJ$1,BQ32+1,\"\"),\"\")","v":86},"136 W 81 St #2R","1-01211-0148","2016-01-04",615000,"Coop","n/a",null,{"$f":"IFERROR(IF(BY32<'Interactive charts'!$BJ$1,BY32+1,\"\"),\"\")","v":""},"","","","","","",null,{"$f":"IFERROR(IF(CG32<'Interactive charts'!$BJ$1,CG32+1,\"\"),\"\")","v":""},"","","","","",""]
[null,null,null,null,null,null,null,null,null,null,null,null,null,null,null,null,null,null,null,null,null,null,null,null,null,null,null,null,null,null,null,null,null,null,null,null,null,null,null,null,null,null,null,null,null,null,null,null,null,null,null,null,null,null,null,null,null,null,null,null,26,"169 West 95 Street #16C","1-01226-1216","2016-01-08",2000861.25,"Condo","n/a",null,{"$f":"IFERROR(IF(BQ33<'Interactive charts'!$BJ$1,BQ33+1,\"\"),\"\")","v":87},"214-217 Riverside Dr #413","1-01252-0075","2016-01-20",599000,"Coop","n/a",null,{"$f":"IFERROR(IF(BY33<'Interactive charts'!$BJ$1,BY33+1,\"\"),\"\")","v":""},"","","","","","",null,{"$f":"IFERROR(IF(CG33<'Interactive charts'!$BJ$1,CG33+1,\"\"),\"\")","v":""},"","","","","",""]
[null,null,null,null,null,null,null,null,null,null,null,null,null,null,null,"25% Y-o-Y",null,null,null,"-6% Y-o-Y",null,null,null,"22% Y-o-Y",null,null,null,"20% Y-o-Y",null,null,null,null,null,null,null,null,null,null,null,null,null,null,null,null,null,null,null,null,null,null,null,null,null,null,null,null,null,null,null,null,27,"305 West 80 Street #4B","1-01244-1010","2016-01-22",1900000,"Condo",865,null,{"$f":"IFERROR(IF(BQ34<'Interactive charts'!$BJ$1,BQ34+1,\"\"),\"\")","v":88},"52 Riverside Dr #14B","1-01186-0051","2016-01-22",550000,"Coop","n/a",null,{"$f":"IFERROR(IF(BY34<'Interactive charts'!$BJ$1,BY34+1,\"\"),\"\")","v":""},"","","","","","",null,{"$f":"IFERROR(IF(CG34<'Interactive charts'!$BJ$1,CG34+1,\"\"),\"\")","v":""},"","","","","",""]
[null,null,null,null,null,null,null,null,null,null,null,null,null,null,null,null,null,null,null,null,null,null,null,null,null,null,null,null,null,null,null,null,null,null,null,null,null,null,null,null,null,null,null,null,null,null,null,null,null,null,null,null,null,null,null,null,null,null,null,null,28,"164-166 W 79 St #10D","1-01150-0056","2016-01-28",1850000,"Coop","n/a",null,{"$f":"IFERROR(IF(BQ35<'Interactive charts'!$BJ$1,BQ35+1,\"\"),\"\")","v":89},"186 West 80 Street #4H","1-01210-1226","2016-01-11",550000,"Condo",376,null,{"$f":"IFERROR(IF(BY35<'Interactive charts'!$BJ$1,BY35+1,\"\"),\"\")","v":""},"","","","","","",null,{"$f":"IFERROR(IF(CG35<'Interactive charts'!$BJ$1,CG35+1,\"\"),\"\")","v":""},"","","","","",""]
[null,null,null,null,null,null,null,null,null,null,null,null,null,null,null,null,null,null,null,null,null,null,null,null,null,null,null,null,null,null,null,null,null,null,null,null,null,null,null,null,null,null,null,null,null,null,null,null,null,null,null,null,null,null,null,null,null,null,null,null,29,"755-759 W End Ave #1B","1-01887-0022","2016-01-28",1800000,"Coop","n/a",null,{"$f":"IFERROR(IF(BQ36<'Interactive charts'!$BJ$1,BQ36+1,\"\"),\"\")","v":90},"287-295 Amsterdam Ave #1012","1-01145-0061","2016-01-07",541000,"Coop","n/a",null,{"$f":"IFERROR(IF(BY36<'Interactive charts'!$BJ$1,BY36+1,\"\"),\"\")","v":""},"","","","","","",null,{"$f":"IFERROR(IF(CG36<'Interactive charts'!$BJ$1,CG36+1,\"\"),\"\")","v":""},"","","","","",""]
[null,null,null,null,null,null,null,null,null,null,null,null,null,null,null,null,null,null,null,null,null,null,null,null,null,null,null,null,null,null,null,null,null,null,null,null,null,null,null,null,null,null,null,null,null,null,null,null,null,null,null,null,null,null,null,null,null,null,null,null,30,"639 W End Ave #5B","1-01251-0054","2016-01-12",1772000,"Coop","n/a",null,{"$f":"IFERROR(IF(BQ37<'Interactive charts'!$BJ$1,BQ37+1,\"\"),\"\")","v":91},"246-252 W 103 St #5E","1-01874-0058","2016-01-27",525000,"Coop","n/a",null,{"$f":"IFERROR(IF(BY37<'Interactive charts'!$BJ$1,BY37+1,\"\"),\"\")","v":""},"","","","","","",null,{"$f":"IFERROR(IF(CG37<'Interactive charts'!$BJ$1,CG37+1,\"\"),\"\")","v":""},"","","","","",""]
[null,null,null,null,null,null,null,null,null,null,null,null,null,null,null,null,null,null,null,null,null,null,null,null,null,null,null,null,null,null,null,null,null,null,null,null,null,null,null,null,null,null,null,null,null,null,null,null,null,null,null,null,null,null,null,null,null,null,null,null,31,"35 W 82 St #5A","1-01196-0013","2016-01-05",1699000,"Coop","n/a",null,{"$f":"IFERROR(IF(BQ38<'Interactive charts'!$BJ$1,BQ38+1,\"\"),\"\")","v":92},"114 W 80 St #1F","1-01210-0042","2016-01-19",505000,"Coop","n/a",null,{"$f":"IFERROR(IF(BY38<'Interactive charts'!$BJ$1,BY38+1,\"\"),\"\")","v":""},"","","","","","",null,{"$f":"IFERROR(IF(CG38<'Interactive charts'!$BJ$1,CG38+1,\"\"),\"\")","v":""},"","","","","",""]
[null,null,null,null,null,null,null,null,null,null,null,null,null,null,null,null,null,null,null,null,null,null,null,null,null,null,null,null,null,null,null,null,null,null,null,null,null,null,null,null,null,null,null,null,null,null,null,null,null,null,null,null,null,null,null,null,null,null,null,null,32,"210 W 78 St #3D","1-01169-0037","2016-01-15",1625000,"Coop","n/a",null,{"$f":"IFERROR(IF(BQ39<'Interactive charts'!$BJ$1,BQ39+1,\"\"),\"\")","v":93},"165 West 95 Street #3N","1-01226-1008","2016-01-14",499900,"Condo",747,null,{"$f":"IFERROR(IF(BY39<'Interactive charts'!$BJ$1,BY39+1,\"\"),\"\")","v":""},"","","","","","",null,{"$f":"IFERROR(IF(CG39<'Interactive charts'!$BJ$1,CG39+1,\"\"),\"\")","v":""},"","","","","",""]
[null,null,null,null,null,null,null,null,null,null,null,null,null,null,null,null,null,null,null,null,null,null,null,null,null,null,null,null,null,null,null,"Month",2011,null,"2012",null,"2013",null,"2014",null,"2015",null,2016,null,null,null,null,null,null,null,null,null,null,null,null,null,null,null,null,null,33,"169 West 95 Street #22F","1-01226-1273","2016-01-07",1617492.5,"Condo","n/a",null,{"$f":"IFERROR(IF(BQ40<'Interactive charts'!$BJ$1,BQ40+1,\"\"),\"\")","v":94},"741-745 W End Ave #6A","1-01887-0016","2016-01-21",470000,"Coop","n/a",null,{"$f":"IFERROR(IF(BY40<'Interactive charts'!$BJ$1,BY40+1,\"\"),\"\")","v":""},"","","","","","",null,{"$f":"IFERROR(IF(CG40<'Interactive charts'!$BJ$1,CG40+1,\"\"),\"\")","v":""},"","","","","",""]
[null,null,null,null,null,null,null,null,null,null,null,null,null,null,null,null,null,null,null,null,null,null,null,null,null,null,null,null,null,null,null,"Jan",77,null,81,null,83,null,139,null,109,null,103,null,null,null,null,null,null,null,null,null,null,null,null,null,null,null,null,null,34,"123 W 74 St #3D","1-01146-0018","2016-01-14",1600000,"Coop","n/a",null,{"$f":"IFERROR(IF(BQ41<'Interactive charts'!$BJ$1,BQ41+1,\"\"),\"\")","v":95},"156 W 73 St #4R","1-01144-0055","2016-01-12",425000,"Coop","n/a",null,{"$f":"IFERROR(IF(BY41<'Interactive charts'!$BJ$1,BY41+1,\"\"),\"\")","v":""},"","","","","","",null,{"$f":"IFERROR(IF(CG41<'Interactive charts'!$BJ$1,CG41+1,\"\"),\"\")","v":""},"","","","","",""]
[null,null,null,null,null,null,null,null,null,null,null,null,null,null,null,null,null,null,null,null,null,null,null,null,null,null,null,null,null,null,null,"Feb",82,null,87,null,106,null,89,null,106,null,null,null,null,null,null,null,null,null,null,null,null,null,null,null,null,null,null,null,35,"345-351 W 88 St #7B","1-01250-0006","2016-01-19",1585000,"Coop","n/a",null,{"$f":"IFERROR(IF(BQ42<'Interactive charts'!$BJ$1,BQ42+1,\"\"),\"\")","v":96},"225 Central Park W #1206","1-01196-0029","2016-01-07",420000,"Coop","n/a",null,{"$f":"IFERROR(IF(BY42<'Interactive charts'!$BJ$1,BY42+1,\"\"),\"\")","v":""},"","","","","","",null,{"$f":"IFERROR(IF(CG42<'Interactive charts'!$BJ$1,CG42+1,\"\"),\"\")","v":""},"","","","","",""]
[null,null,null,null,null,null,null,null,null,null,null,null,null,null,null,null,null,null,null,null,null,null,null,null,null,null,null,null,null,null,null,"Mar",82,null,87,null,97,null,106,null,91,null,null,null,null,null,null,null,null,null,null,null,null,null,null,null,null,null,null,null,36,"332-338 W 86 St #3C","1-01247-0050","2016-01-22",1575000,"Coop","n/a",null,{"$f":"IFERROR(IF(BQ43<'Interactive charts'!$BJ$1,BQ43+1,\"\"),\"\")","v":97},"418-422 Columbus Ave #9E","1-01211-0029","2016-01-14",420000,"Coop","n/a",null,{"$f":"IFERROR(IF(BY43<'Interactive charts'!$BJ$1,BY43+1,\"\"),\"\")","v":""},"","","","","","",null,{"$f":"IFERROR(IF(CG43<'Interactive charts'!$BJ$1,CG43+1,\"\"),\"\")","v":""},"","","","","",""]
[null,null,null,null,null,null,null,null,null,null,null,null,null,null,null,null,null,null,null,null,null,null,null,null,null,null,null,null,null,null,null,"Apr",107,null,88,null,93,null,114,null,103,null,null,null,null,null,null,null,null,null,null,null,null,null,null,null,null,null,null,null,37,"11 Riverside Dr #17NE","1-01184-0031","2016-01-13",1575000,"Coop","n/a",null,{"$f":"IFERROR(IF(BQ44<'Interactive charts'!$BJ$1,BQ44+1,\"\"),\"\")","v":98},"124 West 93 Street #5C","1-01223-1126","2016-01-14",400000,"Condo",971,null,{"$f":"IFERROR(IF(BY44<'Interactive charts'!$BJ$1,BY44+1,\"\"),\"\")","v":""},"","","","","","",null,{"$f":"IFERROR(IF(CG44<'Interactive charts'!$BJ$1,CG44+1,\"\"),\"\")","v":""},"","","","","",""]
[null,null,null,null,null,null,null,null,null,null,null,null,null,null,null,null,null,null,null,null,null,null,null,null,null,null,null,null,null,null,null,"May",117,null,126,null,143,null,125,null,97,null,null,null,null,null,null,null,null,null,null,null,null,null,null,null,null,null,null,null,38,"169 West 95 Street #22G","1-01226-1274","2016-01-07",1514467.5,"Condo","n/a",null,{"$f":"IFERROR(IF(BQ45<'Interactive charts'!$BJ$1,BQ45+1,\"\"),\"\")","v":99},"327 W 85 St #2C","1-01247-0022","2016-01-20",345000,"Coop","n/a",null,{"$f":"IFERROR(IF(BY45<'Interactive charts'!$BJ$1,BY45+1,\"\"),\"\")","v":""},"","","","","","",null,{"$f":"IFERROR(IF(CG45<'Interactive charts'!$BJ$1,CG45+1,\"\"),\"\")","v":""},"","","","","",""]
[null,null,null,null,null,null,null,null,null,null,null,null,null,null,null,null,null,null,null,null,null,null,null,null,null,null,null,null,null,null,null,"Jun",151,null,148,null,138,null,143,null,154,null,null,null,null,null,null,null,null,null,null,null,null,null,null,null,null,null,null,null,39,"205 West 76 Street #603","1-01168-1016","2016-01-19",1500000,"Condo",826,null,{"$f":"IFERROR(IF(BQ46<'Interactive charts'!$BJ$1,BQ46+1,\"\"),\"\")","v":100},"2681 Broadway #12D","1-01874-1002","2016-01-13",342000,"Coop","n/a",null,{"$f":"IFERROR(IF(BY46<'Interactive charts'!$BJ$1,BY46+1,\"\"),\"\")","v":""},"","","","","","",null,{"$f":"IFERROR(IF(CG46<'Interactive charts'!$BJ$1,CG46+1,\"\"),\"\")","v":""},"","","","","",""]
[null,null,null,null,null,null,null,null,null,null,null,null,null,null,null,null,null,null,null,null,null,null,null,null,null,null,null,null,null,null,null,"Jul",122,null,143,null,178,null,160,null,136,null,null,null,null,null,null,null,null,null,null,null,null,null,null,null,null,null,null,null,40,"134 W 81 St #BF","1-01211-0048","2016-01-21",1499000,"Coop","n/a",null,{"$f":"IFERROR(IF(BQ47<'Interactive charts'!$BJ$1,BQ47+1,\"\"),\"\")","v":101},"310 Riverside Dr #1712","1-01890-0040","2016-01-26",325000,"Coop","n/a",null,{"$f":"IFERROR(IF(BY47<'Interactive charts'!$BJ$1,BY47+1,\"\"),\"\")","v":""},"","","","","","",null,{"$f":"IFERROR(IF(CG47<'Interactive charts'!$BJ$1,CG47+1,\"\"),\"\")","v":""},"","","","","",""]
[null,null,null,null,null,null,null,null,null,null,null,null,null,null,null,null,null,null,null,null,null,null,null,null,null,null,null,null,null,null,null,"Aug",136,null,157,null,152,null,142,null,137,null,null,null,null,null,null,null,null,null,null,null,null,null,null,null,null,null,null,null,41,"46 W 83 St #7A","1-01196-0052","2016-01-21",1475000,"Coop","n/a",null,{"$f":"IFERROR(IF(BQ48<'Interactive charts'!$BJ$1,BQ48+1,\"\"),\"\")","v":102},"161 West 75 Street #R1","1-01147-1003","2016-01-13",119740.47,"Coop","n/a",null,{"$f":"IFERROR(IF(BY48<'Interactive charts'!$BJ$1,BY48+1,\"\"),\"\")","v":""},"","","","","","",null,{"$f":"IFERROR(IF(CG48<'Interactive charts'!$BJ$1,CG48+1,\"\"),\"\")","v":""},"","","","","",""]
[null,null,null,null,null,null,null,null,null,null,null,null,null,null,null,null,null,null,null,null,null,null,null,null,null,null,null,null,null,null,null,"Sep",115,null,110,null,112,null,127,null,100,null,null,null,null,null,null,null,null,null,null,null,null,null,null,null,null,null,null,null,42,"309 W 93 St #3A","1-01252-0044","2016-01-13",1450000,"Coop","n/a",null,{"$f":"IFERROR(IF(BQ49<'Interactive charts'!$BJ$1,BQ49+1,\"\"),\"\")","v":103},"15 W 72 St #8K","1-01125-0024","2016-01-15",35490,"Coop","n/a",null,{"$f":"IFERROR(IF(BY49<'Interactive charts'!$BJ$1,BY49+1,\"\"),\"\")","v":""},"","","","","","",null,{"$f":"IFERROR(IF(CG49<'Interactive charts'!$BJ$1,CG49+1,\"\"),\"\")","v":""},"","","","","",""]
[null,null,null,null,null,null,null,null,null,null,null,null,null,null,null,null,null,null,null,null,null,null,null,null,null,null,null,null,null,null,null,"Oct",97,null,105,null,158,null,102,null,124,null,null,null,null,null,null,null,null,null,null,null,null,null,null,null,null,null,null,null,43,"169 West 95 Street #24G","1-01226-1292","2016-01-05",1415367.5,"Condo","n/a",null,{"$f":"IFERROR(IF(BQ50<'Interactive charts'!$BJ$1,BQ50+1,\"\"),\"\")","v":""},"","","","","","",null,{"$f":"IFERROR(IF(BY50<'Interactive charts'!$BJ$1,BY50+1,\"\"),\"\")","v":""},"","","","","","",null,{"$f":"IFERROR(IF(CG50<'Interactive charts'!$BJ$1,CG50+1,\"\"),\"\")","v":""},"","","","","",""]
[null,null,null,null,null,null,null,null,null,null,null,null,null,null,null,null,null,null,null,null,null,null,null,null,null,null,null,null,null,null,null,"Nov",86,null,79,null,98,null,74,null,109,null,null,null,null,null,null,null,null,null,null,null,null,null,null,null,null,null,null,null,44,"161 West 75 Street #3C","1-01147-1003","2016-01-13",1400000,"Coop","n/a",null,{"$f":"IFERROR(IF(BQ51<'Interactive charts'!$BJ$1,BQ51+1,\"\"),\"\")","v":""},"","","","","","",null,{"$f":"IFERROR(IF(BY51<'Interactive charts'!$BJ$1,BY51+1,\"\"),\"\")","v":""},"","","","","","",null,{"$f":"IFERROR(IF(CG51<'Interactive charts'!$BJ$1,CG51+1,\"\"),\"\")","v":""},"","","","","",""]
[null,null,null,null,null,null,null,null,null,null,null,null,null,null,null,null,null,null,null,null,null,null,null,null,null,null,null,null,null,null,null,"Dec",78,null,149,null,146,null,97,null,108,null,null,null,null,null,null,null,null,null,null,null,null,null,null,null,null,null,null,null,45,"545-551 W End Ave #2C","1-01248-0029","2016-01-08",1400000,"Coop","n/a",null,{"$f":"IFERROR(IF(BQ52<'Interactive charts'!$BJ$1,BQ52+1,\"\"),\"\")","v":""},"","","","","","",null,{"$f":"IFERROR(IF(BY52<'Interactive charts'!$BJ$1,BY52+1,\"\"),\"\")","v":""},"","","","","","",null,{"$f":"IFERROR(IF(CG52<'Interactive charts'!$BJ$1,CG52+1,\"\"),\"\")","v":""},"","","","","",""]
[null,null,null,null,null,null,null,null,null,null,null,null,null,null,null,null,null,null,null,null,null,null,null,null,null,null,null,null,null,null,null,null,null,null,null,null,null,null,null,null,null,null,null,null,null,null,null,null,null,null,null,null,null,null,null,null,null,null,null,null,46,"320 Central Park W #1L","1-01205-0034","2016-01-12",1350000,"Coop","n/a",null,{"$f":"IFERROR(IF(BQ53<'Interactive charts'!$BJ$1,BQ53+1,\"\"),\"\")","v":""},"","","","","","",null,{"$f":"IFERROR(IF(BY53<'Interactive charts'!$BJ$1,BY53+1,\"\"),\"\")","v":""},"","","","","","",null,{"$f":"IFERROR(IF(CG53<'Interactive charts'!$BJ$1,CG53+1,\"\"),\"\")","v":""},"","","","","",""]
[null,null,null,null,null,null,null,null,null,null,null,null,null,null,null,null,null,null,null,null,null,null,null,null,null,null,null,null,null,null,null,null,null,null,null,null,null,null,null,null,null,null,null,null,null,null,null,null,null,null,null,null,null,null,null,null,null,null,null,null,47,"101 West 87 Street #614","1-01218-1047","2016-01-19",1325000,"Condo",750,null,{"$f":"IFERROR(IF(BQ54<'Interactive charts'!$BJ$1,BQ54+1,\"\"),\"\")","v":""},"","","","","","",null,{"$f":"IFERROR(IF(BY54<'Interactive charts'!$BJ$1,BY54+1,\"\"),\"\")","v":""},"","","","","","",null,{"$f":"IFERROR(IF(CG54<'Interactive charts'!$BJ$1,CG54+1,\"\"),\"\")","v":""},"","","","","",""]
[null,null,null,null,null,null,null,null,null,null,null,null,null,null,null,null,null,null,null,null,null,null,null,null,null,null,null,null,null,null,null,null,null,null,null,null,null,null,null,null,null,null,null,null,null,null,null,null,null,null,null,null,null,null,null,null,null,null,null,null,48,"130 W 86 St #13C","1-01216-0044","2016-01-19",1318633.75,"Coop","n/a",null,{"$f":"IFERROR(IF(BQ55<'Interactive charts'!$BJ$1,BQ55+1,\"\"),\"\")","v":""},"","","","","","",null,{"$f":"IFERROR(IF(BY55<'Interactive charts'!$BJ$1,BY55+1,\"\"),\"\")","v":""},"","","","","","",null,{"$f":"IFERROR(IF(CG55<'Interactive charts'!$BJ$1,CG55+1,\"\"),\"\")","v":""},"","","","","",""]
[null,null,null,null,null,null,null,null,null,null,null,null,null,null,null,null,null,null,null,null,null,null,null,null,null,null,null,null,null,null,null,null,null,null,null,null,null,null,null,null,null,null,null,null,null,null,null,null,null,null,null,null,null,null,null,null,null,null,null,null,49,"681-689 Amsterdam Ave #6F","1-01224-0001","2016-01-28",1275000,"Coop","n/a",null,{"$f":"IFERROR(IF(BQ56<'Interactive charts'!$BJ$1,BQ56+1,\"\"),\"\")","v":""},"","","","","","",null,{"$f":"IFERROR(IF(BY56<'Interactive charts'!$BJ$1,BY56+1,\"\"),\"\")","v":""},"","","","","","",null,{"$f":"IFERROR(IF(CG56<'Interactive charts'!$BJ$1,CG56+1,\"\"),\"\")","v":""},"","","","","",""]
[null,null,null,null,null,null,null,null,null,null,null,null,null,null,null,null,null,null,null,null,null,null,null,null,null,null,null,null,null,null,null,null,null,null,null,null,null,null,null,null,null,null,null,null,null,null,null,null,null,null,null,null,null,null,null,null,null,null,null,null,50,"11 W 81 St #2B","1-01195-0023","2016-01-15",1250000,"Coop","n/a",null,{"$f":"IFERROR(IF(BQ57<'Interactive charts'!$BJ$1,BQ57+1,\"\"),\"\")","v":""},"","","","","","",null,{"$f":"IFERROR(IF(BY57<'Interactive charts'!$BJ$1,BY57+1,\"\"),\"\")","v":""},"","","","","","",null,{"$f":"IFERROR(IF(CG57<'Interactive charts'!$BJ$1,CG57+1,\"\"),\"\")","v":""},"","","","","",""]
[null,null,null,null,null,null,null,null,null,null,null,null,null,null,null,null,null,null,null,null,null,null,null,null,null,null,null,null,null,null,null,null,null,null,null,null,null,null,null,null,null,null,null,null,null,null,null,null,null,null,null,null,null,null,null,null,null,null,null,null,51,"124 West 93 Street #5C","1-01223-1126","2016-01-19",1170000,"Condo",971,null,{"$f":"IFERROR(IF(BQ58<'Interactive charts'!$BJ$1,BQ58+1,\"\"),\"\")","v":""},"","","","","","",null,{"$f":"IFERROR(IF(BY58<'Interactive charts'!$BJ$1,BY58+1,\"\"),\"\")","v":""},"","","","","","",null,{"$f":"IFERROR(IF(CG58<'Interactive charts'!$BJ$1,CG58+1,\"\"),\"\")","v":""},"","","","","",""]
[null,null,null,null,null,null,null,null,null,null,null,null,null,null,null,null,null,null,null,null,null,null,null,null,null,null,null,null,null,null,null,null,null,null,null,null,null,null,null,null,null,null,null,null,null,null,null,null,null,null,null,null,null,null,null,null,null,null,null,null,52,"169 West 95 Street #23D","1-01226-1280","2016-01-07",1120075,"Condo","n/a",null,{"$f":"IFERROR(IF(BQ59<'Interactive charts'!$BJ$1,BQ59+1,\"\"),\"\")","v":""},"","","","","","",null,{"$f":"IFERROR(IF(BY59<'Interactive charts'!$BJ$1,BY59+1,\"\"),\"\")","v":""},"","","","","","",null,{"$f":"IFERROR(IF(CG59<'Interactive charts'!$BJ$1,CG59+1,\"\"),\"\")","v":""},"","","","","",""]
[null,null,null,null,null,null,null,null,null,null,null,null,null,null,null,null,null,null,null,null,null,null,null,null,null,null,null,null,null,null,null,null,null,null,null,null,null,null,null,null,null,null,null,null,null,null,null,null,null,null,null,null,null,null,null,null,null,null,null,null,53,"320 W 89 St #9C","1-01250-0047","2016-01-11",1100000,"Coop","n/a",null,{"$f":"IFERROR(IF(BQ60<'Interactive charts'!$BJ$1,BQ60+1,\"\"),\"\")","v":""},"","","","","","",null,{"$f":"IFERROR(IF(BY60<'Interactive charts'!$BJ$1,BY60+1,\"\"),\"\")","v":""},"","","","","","",null,{"$f":"IFERROR(IF(CG60<'Interactive charts'!$BJ$1,CG60+1,\"\"),\"\")","v":""},"","","","","",""]
[null,null,null,null,null,null,null,null,null,null,null,null,null,null,null,null,null,null,null,null,null,null,null,null,null,null,null,null,null,null,null,null,null,null,null,null,null,null,null,null,null,null,null,null,null,null,null,null,null,null,null,null,null,null,null,null,null,null,null,null,54,"541 Amsterdam Ave #8B","1-01217-0064","2016-01-25",1050000,"Coop","n/a",null,{"$f":"IFERROR(IF(BQ61<'Interactive charts'!$BJ$1,BQ61+1,\"\"),\"\")","v":""},"","","","","","",null,{"$f":"IFERROR(IF(BY61<'Interactive charts'!$BJ$1,BY61+1,\"\"),\"\")","v":""},"","","","","","",null,{"$f":"IFERROR(IF(CG61<'Interactive charts'!$BJ$1,CG61+1,\"\"),\"\")","v":""},"","","","","",""]
[null,null,null,null,null,null,null,null,null,null,null,null,null,null,null,null,null,null,null,null,null,null,null,null,null,null,null,null,null,null,null,null,null,null,null,null,null,null,null,null,null,null,null,null,null,null,null,null,null,null,null,null,null,null,null,null,null,null,null,null,55,"2511-2513 Broadway #2C","1-01241-0052","2016-01-06",999999,"Coop","n/a",null,{"$f":"IFERROR(IF(BQ62<'Interactive charts'!$BJ$1,BQ62+1,\"\"),\"\")","v":""},"","","","","","",null,{"$f":"IFERROR(IF(BY62<'Interactive charts'!$BJ$1,BY62+1,\"\"),\"\")","v":""},"","","","","","",null,{"$f":"IFERROR(IF(CG62<'Interactive charts'!$BJ$1,CG62+1,\"\"),\"\")","v":""},"","","","","",""]
[null,null,null,null,null,null,null,null,null,null,null,null,null,null,null,null,null,null,null,null,null,null,null,null,null,null,null,null,null,null,null,null,null,null,null,null,null,null,null,null,null,null,null,null,null,null,null,null,null,null,null,null,null,null,null,null,null,null,null,null,56,"15 W 72 St #22A","1-01125-0024","2016-01-27",999000,"Coop","n/a",null,{"$f":"IFERROR(IF(BQ63<'Interactive charts'!$BJ$1,BQ63+1,\"\"),\"\")","v":""},"","","","","","",null,{"$f":"IFERROR(IF(BY63<'Interactive charts'!$BJ$1,BY63+1,\"\"),\"\")","v":""},"","","","","","",null,{"$f":"IFERROR(IF(CG63<'Interactive charts'!$BJ$1,CG63+1,\"\"),\"\")","v":""},"","","","","",""]
[null,null,null,null,null,null,null,null,null,null,null,null,null,null,null,null,null,null,null,null,null,null,null,null,null,null,null,null,null,null,null,null,null,null,null,null,null,null,null,null,null,null,null,null,null,null,null,null,null,null,null,null,null,null,null,null,null,null,null,null,57,"541 Amsterdam Ave #3E","1-01217-0064","2016-01-28",987000,"Coop","n/a",null,{"$f":"IFERROR(IF(BQ64<'Interactive charts'!$BJ$1,BQ64+1,\"\"),\"\")","v":""},"","","","","","",null,{"$f":"IFERROR(IF(BY64<'Interactive charts'!$BJ$1,BY64+1,\"\"),\"\")","v":""},"","","","","","",null,{"$f":"IFERROR(IF(CG64<'Interactive charts'!$BJ$1,CG64+1,\"\"),\"\")","v":""},"","","","","",""]
[null,null,null,null,null,null,null,null,null,null,null,null,null,null,null,null,null,null,null,null,null,null,null,null,null,null,null,null,null,null,null,null,null,null,null,null,null,null,null,null,null,null,null,null,null,null,null,null,null,null,null,null,null,null,null,null,null,null,null,null,58,"230 Riverside Drive #14H","1-01253-1487","2016-01-12",980000,"Condo",774,null,{"$f":"IFERROR(IF(BQ65<'Interactive charts'!$BJ$1,BQ65+1,\"\"),\"\")","v":""},"","","","","","",null,{"$f":"IFERROR(IF(BY65<'Interactive charts'!$BJ$1,BY65+1,\"\"),\"\")","v":""},"","","","","","",null,{"$f":"IFERROR(IF(CG65<'Interactive charts'!$BJ$1,CG65+1,\"\"),\"\")","v":""},"","","","","",""]
[null,null,null,null,null,null,null,null,null,null,null,null,null,null,null,null,null,null,null,null,null,null,null,null,null,null,null,null,null,null,null,null,null,null,null,null,null,null,null,null,null,null,null,null,null,null,null,null,null,null,null,null,null,null,null,null,null,null,null,null,59,"2610 Broadway #4AA","1-01870-1107","2016-01-08",975000,"Coop","n/a",null,{"$f":"IFERROR(IF(BQ66<'Interactive charts'!$BJ$1,BQ66+1,\"\"),\"\")","v":""},"","","","","","",null,{"$f":"IFERROR(IF(BY66<'Interactive charts'!$BJ$1,BY66+1,\"\"),\"\")","v":""},"","","","","","",null,{"$f":"IFERROR(IF(CG66<'Interactive charts'!$BJ$1,CG66+1,\"\"),\"\")","v":""},"","","","","",""]
[null,null,null,null,null,null,null,null,null,null,null,null,null,null,null,null,null,null,null,null,null,null,null,null,null,null,null,null,null,null,null,null,null,null,null,null,null,null,null,null,null,null,null,null,null,null,null,null,null,null,null,null,null,null,null,null,null,null,null,null,60,"300 Riverside Dr #3G","1-01890-0001","2016-01-04",965000,"Coop","n/a",null,{"$f":"IFERROR(IF(BQ67<'Interactive charts'!$BJ$1,BQ67+1,\"\"),\"\")","v":""},"","","","","","",null,{"$f":"IFERROR(IF(BY67<'Interactive charts'!$BJ$1,BY67+1,\"\"),\"\")","v":""},"","","","","","",null,{"$f":"IFERROR(IF(CG67<'Interactive charts'!$BJ$1,CG67+1,\"\"),\"\")","v":""},"","","","","",""]
[null,null,null,null,null,null,null,null,null,null,null,null,null,null,null,null,null,null,null,null,null,null,null,null,null,null,null,null,null,null,null,null,null,null,null,null,null,null,null,null,null,null,null,null,null,null,null,null,null,null,null,null,null,null,null,null,null,null,null,null,61,"123 W 93 St #10F","1-01224-0023","2016-01-05",960000,"Coop","n/a",null,{"$f":"IFERROR(IF(BQ68<'Interactive charts'!$BJ$1,BQ68+1,\"\"),\"\")","v":""},"","","","","","",null,{"$f":"IFERROR(IF(BY68<'Interactive charts'!$BJ$1,BY68+1,\"\"),\"\")","v":""},"","","","","","",null,{"$f":"IFERROR(IF(CG68<'Interactive charts'!$BJ$1,CG68+1,\"\"),\"\")","v":""},"","","","","",""]